fUSD/lending_fUSD_20241030
["ID","MTS","AMOUNT","RATE_DAILY","PERIOD"]
[341070127,1730328644885,-150.0,0.00043846,2]
[341070128,1730328644895,-150.0,0.00043847,2]
[341070129,1730328644906,-150.0,0.00043857,2]
[341070130,1730328644916,-150.0,0.00043859,2]
[341070131,1730328644925,-150.0,0.00043871,2]
[341070132,1730328644935,-150.0,0.00043874,2]
[341070133,1730328644946,-150.0,0.00043881,2]
[341070134,1730328644957,-150.0,0.00043891,2]
[341070135,1730328644968,-150.0,0.00043895,2]
[341070136,1730328644978,-150.0,0.00043911,2]
[341070137,1730328644988,-150.0,0.00043915,2]
[341070138,1730328644997,-150.0,0.00043929,2]
[341070139,1730328645006,-150.0,0.00043933,2]
[341070140,1730328645015,-150.0,0.00043934,2]
[341070141,1730328645024,-150.0,0.00043934,2]
[341070142,1730328645035,-150.0,0.00043938,2]
[341070143,1730328645046,-150.0,0.00043943,2]
[341070144,1730328645055,-150.0,0.00043943,2]
[341070145,1730328645065,-150.0,0.00043945,2]
[341070146,1730328645075,-151.0,0.00043956,14]
[341070147,1730328645086,-250.793322,0.00043956,14]
[341070148,1730328645097,-151.0,0.00043956,14]
[341070149,1730328645108,-151.0,0.00043956,14]
[341070150,1730328645119,-38126.28213355,0.00043956,2]
[341070151,1730328645129,-12237.67886708,0.00043956,2]
[341070152,1730328645142,-2476.39975165,0.00043956,2]
[341070153,1730328645152,-170.97522605,0.00043956,2]
[341070154,1730328645163,-6000.0,0.00043956,2]
[341070155,1730328645173,-1016.93317264,0.00043956,2]
[341070156,1730328645184,-14397.93351041,0.00043956,2]
[341070157,1730328645194,-554.28598807,0.00043956,2]
[341070158,1730328645204,-150.0,0.00043956,2]
[341070159,1730328645214,-46053.69486293,0.00043956,2]
[341070160,1730328645227,-83996.34669537,0.00043956,2]
[341070161,1730328645239,-554.91,0.00043956,2]
[341070162,1730328645283,-150.0,0.00043729,2]
[341070163,1730328645295,-150.0,0.00043737,2]
[341070164,1730328645307,-150.0,0.00043788,2]
[341070165,1730328645318,-150.0,0.00043805,2]
[341070166,1730328645327,-150.0,0.00043827,2]
[341070167,1730328645337,-150.0,0.00043894,2]
[341070168,1730328645348,-1707.36457026,0.00043956,2]
[341070169,1730328645391,-150.0,0.00043815,2]
[341070170,1730328645401,-150.0,0.00043815,2]
[341070171,1730328645413,-150.0,0.00043942,2]
[341070172,1730328645425,-151.0,0.00043956,14]
[341070173,1730328645437,-359.35877222,0.00043956,2]
[341070174,1730328645449,-377.0009422,0.00043956,2]
[341070175,1730328645461,-726.341344,0.00043956,2]
[341070176,1730328645474,-613.75500018,0.00043956,2]
[341070177,1730328645529,-150.0,0.00043746,2]
[341070178,1730328645541,-150.0,0.00043802,2]
[341070179,1730328645551,-150.0,0.00043836,2]
[341070180,1730328645561,-150.0,0.00043844,2]
[341070181,1730328645572,-150.0,0.00043886,2]
[341070182,1730328645582,-150.0,0.00043913,2]
[341070183,1730328645592,-150.0,0.00043952,2]
[341070184,1730328645602,-3507.62399764,0.00043956,2]
[341070185,1730328645615,-318.451005,0.00043956,2]
[341070186,1730328645998,-396.70620616,0.000411,2]
[341070187,1730328646006,-150.0,0.00043713,2]
[341070188,1730328646016,-150.0,0.00043729,2]
[341070189,1730328646026,-150.0,0.00043729,2]
[341070190,1730328646036,-150.0,0.0004373,2]
[341070191,1730328646047,-150.0,0.00043732,2]
[341070192,1730328646057,-150.0,0.00043794,2]
[341070193,1730328646066,-150.0,0.00043811,2]
[341070194,1730328646076,-150.0,0.00043811,2]
[341070195,1730328646085,-150.0,0.00043813,2]
[341070196,1730328646095,-150.0,0.00043814,2]
[341070197,1730328646105,-150.0,0.00043826,2]
[341070198,1730328646115,-150.0,0.0004384,2]
[341070199,1730328646125,-150.0,0.00043846,2]
[341070200,1730328646135,-150.0,0.00043886,2]
[341070201,1730328646146,-150.0,0.00043887,2]
[341070202,1730328646154,-150.0,0.0004392,2]
[341070203,1730328646164,-150.0,0.00043935,2]
[341070204,1730328646173,-150.0,0.00043951,2]
[341070205,1730328646183,-201.0,0.00043956,7]
[341070206,1730328646194,-151.0,0.00043956,14]
[341070207,1730328646204,-232.300667,0.00043956,14]
[341070208,1730328646214,-47246.42300176,0.00043956,2]
[341070211,1730328646227,-635.38304362,0.00043956,2]
[341070215,1730328646242,-638.88960427,0.00043956,2]
[341070217,1730328646254,-7379.53561108,0.00043956,2]
[341070224,1730328646291,-268.02886842,0.00043562,2]
[341070227,1730328646303,-491.30113158,0.00043562,2]
[341070228,1730328646313,-11562.98650842,0.00043956,2]
[341070246,1730328646533,-429.40378269,0.00043956,2]
[341070247,1730328646547,-1514.90777587,0.00043956,2]
[341070248,1730328646564,-1047.80555076,0.00043856,20]
[341070249,1730328646573,-12664.42092711,0.00043956,2]
[341070250,1730328646700,-467.399,0.00043956,2]
[341070251,1730328646711,-73461.33267,0.00043956,2]
[341070252,1730328646720,-616.5796163,0.00043956,2]
[341070253,1730328646729,-211.36780536,0.00043956,2]
[341070254,1730328646738,-25867.80632343,0.00043956,2]
[341070255,1730328646766,-335.23446328,0.00043956,2]
[341070256,1730328646776,-2354.70158924,0.00043956,2]
[341070257,1730328646790,-3415.7304,0.00043956,2]
[341070258,1730328646801,-1739.517984,0.00043956,2]
[341070259,1730328646812,-2890.33831613,0.00043956,2]
[341070260,1730328646822,-3038.53201614,0.00043956,2]
[341070261,1730328646834,-2268.85095268,0.00043956,2]
[341070262,1730328646844,-322.9,0.00043956,2]
[341070265,1730328651798,150.0,0.00017605,2]
[341070266,1730328661799,300.0,0.00019725,2]
[341070270,1730329039024,150.0,0.00017605,2]
[341070271,1730329364329,158.87,0.00015342,2]
[341070273,1730329381167,300.0,0.00019725,2]
[341070274,1730329479567,150.0,0.0002001,2]
[341070307,1730329831575,-154.0,0.0002402,10]
[341070308,1730329831584,-500.0,0.0002702,30]
[341070309,1730329831594,-296.75329784,0.0003,2]
[341070310,1730329831659,-32.24670216,0.0003,2]
[341070311,1730329831669,-154.0,0.0003,10]
[341070312,1730329831679,-266.3921,0.000349,30]
[341070313,1730329831688,-150.0,0.00035,22]
[341070314,1730329831698,-10268.16119784,0.00035,2]
[341070315,1730329831749,-3163.87797086,0.00035,2]
[341070316,1730329831831,-1978.8290792,0.00035,2]
[341070317,1730329831842,-1546.32224169,0.00035,2]
[341070318,1730329831854,-2295.40341482,0.00035,2]
[341070319,1730329831865,-347.7891811,0.00035,2]
[341070320,1730329831875,-669.61,0.00035616,10]
[341070321,1730329831884,-166.84968033,0.00035616,2]
[341070322,1730329831895,-20.5009471,0.00035616,2]
[341070323,1730329831905,-804.21726778,0.00037753,120]
[341070324,1730329831914,-24.09063025,0.000378,31]
[341070325,1730329831925,-129.58936975,0.000378,31]
[341070326,1730329831935,-153.68,0.000378,31]
[341070327,1730329831944,-6.89399384,0.000378,31]
[341070328,1730329831957,-146.78600616,0.000378,31]
[341070329,1730329831966,-153.68,0.000394,31]
[341070330,1730329831976,-153.68,0.000394,31]
[341070331,1730329831985,-64.75315743,0.000394,31]
[341070346,1730329837855,-88.92684257,0.000394,31]
[341070347,1730329837865,-153.68,0.000394,31]
[341070348,1730329837875,-153.68,0.000394,31]
[341070349,1730329837884,-153.68,0.000394,31]
[341070350,1730329837894,-154.0,0.0004,20]
[341070351,1730329837904,-820.71,0.00040207,2]
[341070352,1730329837914,-153.68,0.000409,31]
[341070353,1730329837924,-153.68,0.000409,31]
[341070354,1730329837934,-153.68,0.000409,31]
[341070355,1730329837944,-153.68,0.000409,31]
[341070356,1730329837958,-153.68,0.000409,31]
[341070357,1730329837967,-153.68,0.000409,31]
[341070358,1730329837977,-170.664,0.00040944,59]
[341070359,1730329837987,-549.41,0.00040944,59]
[341070360,1730329837996,-1127.125107,0.00041821,2]
[341070361,1730329838006,-150.0,0.0004192,2]
[341070362,1730329838015,-150.0,0.00041963,7]
[341070363,1730329838024,-640.0,0.00042032,2]
[341070364,1730329838034,-157.0,0.00042048,2]
[341070365,1730329838047,-221.36,0.00042226,2]
[341070366,1730329838056,-157.83,0.0004235,120]
[341070367,1730329838065,-820.71,0.00042471,2]
[341070368,1730329838074,-153.68,0.000425,33]
[341070369,1730329838085,-153.68,0.000425,33]
[341070370,1730329838094,-153.68,0.000425,33]
[341070371,1730329838103,-153.68,0.000425,33]
[341070372,1730329838112,-153.68,0.000425,33]
[341070373,1730329838123,-153.68,0.000425,33]
[341070374,1730329838133,-759.33,0.00042603,2]
[341070375,1730329838143,-250.89,0.00042603,2]
[341070376,1730329838152,-360.0,0.00042808,2]
[341070377,1730329838162,-150.0,0.0004304,2]
[341070378,1730329838171,-150.0,0.00043562,2]
[341070379,1730329838180,-366.9,0.00043562,2]
[341070380,1730329838189,-150.0,0.00043562,2]
[341070381,1730329838198,-150.0,0.00043562,2]
[341070382,1730329838211,-150.0,0.00043562,2]
[341070383,1730329838221,-360.82,0.00043562,2]
[341070384,1730329838230,-150.0,0.00043562,2]
[341070385,1730329838240,-150.0,0.00043562,2]
[341070386,1730329838249,-360.82,0.00043562,2]
[341070387,1730329838259,-150.0,0.00043562,2]
[341070388,1730329838269,-360.82,0.00043562,2]
[341070389,1730329838278,-150.0,0.00043562,2]
[341070390,1730329838288,-150.0,0.00043562,2]
[341070391,1730329838297,-150.0,0.00043562,2]
[341070392,1730329838306,-150.0,0.00043562,2]
[341070393,1730329838316,-150.0,0.00043562,2]
[341070394,1730329838325,-500.0,0.00043562,120]
[341070395,1730329838334,-500.0,0.00043562,120]
[341070396,1730329838343,-500.0,0.00043562,120]
[341070397,1730329838352,-500.0,0.00043562,120]
[341070398,1730329838362,-500.0,0.00043562,120]
[341070399,1730329838371,-500.0,0.00043562,120]
[341070400,1730329838381,-500.0,0.00043562,120]
[341070401,1730329838391,-500.0,0.00043562,120]
[341070402,1730329838400,-500.0,0.00043562,120]
[341070403,1730329838410,-500.0,0.00043562,120]
[341070404,1730329838419,-500.0,0.00043562,120]
[341070405,1730329838428,-500.0,0.00043562,120]
[341070406,1730329838438,-500.0,0.00043562,120]
[341070407,1730329838447,-500.0,0.00043562,120]
[341070408,1730329838459,-500.0,0.00043562,120]
[341070409,1730329838469,-500.0,0.00043562,120]
[341070410,1730329838478,-500.0,0.00043562,120]
[341070411,1730329838488,-500.0,0.00043562,120]
[341070412,1730329838497,-500.0,0.00043562,120]
[341070413,1730329838506,-500.0,0.00043562,120]
[341070414,1730329838516,-416.25636893,0.00043562,120]
[341070415,1730329839830,-83.74363107,0.00043562,120]
[341070416,1730329839839,-324.41973587,0.00043562,120]
[341070417,1730329839850,-175.58026413,0.00043562,120]
[341070418,1730329839859,-500.0,0.00043562,120]
[341070419,1730329839868,-500.0,0.00043562,120]
[341070420,1730329839877,-422.41684106,0.00043562,120]
[341070421,1730329839888,-77.58315894,0.00043562,120]
[341070422,1730329839897,-189.69184107,0.00043562,120]
[341070432,1730329845527,-725.118379,0.0004304,2]
[341070435,1730329845831,-310.30815893,0.00043562,120]
[341070436,1730329845841,-500.0,0.00043562,120]
[341070437,1730329845850,-500.0,0.00043562,120]
[341070438,1730329845860,-500.0,0.00043562,120]
[341070439,1730329845870,-500.0,0.00043562,120]
[341070440,1730329845880,-500.0,0.00043562,120]
[341070441,1730329845890,-500.0,0.00043562,120]
[341070442,1730329845899,-500.0,0.00043562,120]
[341070443,1730329845909,-500.0,0.00043562,120]
[341070444,1730329845919,-500.0,0.00043562,120]
[341070445,1730329845934,-500.0,0.00043562,120]
[341070446,1730329845944,-166.59,0.00043591,2]
[341070447,1730329845954,-150.0,0.00043728,2]
[341070448,1730329845965,-452.41311774,0.00043743,2]
[341070449,1730329845974,-150.0,0.00043747,2]
[341070450,1730329845984,-150.0,0.00043755,2]
[341070451,1730329845994,-156.21976284,0.00043766,2]
[341070452,1730329846003,-589.02,0.000438,2]
[341070453,1730329846012,-452.41311774,0.00043809,2]
[341070454,1730329846022,-150.0,0.00043814,2]
[341070455,1730329846032,-150.0,0.00043821,2]
[341070456,1730329846044,-150.0,0.00043822,2]
[341070457,1730329846054,-150.0,0.00043825,2]
[341070458,1730329846063,-150.0,0.00043844,2]
[341070459,1730329846072,-452.41311774,0.00043848,2]
[341070460,1730329846082,-183.71983357,0.00043852,2]
[341070461,1730329846092,-367.6812,0.00043856,2]
[341070462,1730329846101,-6254.946,0.00043856,2]
[341070463,1730329846111,-1552.725,0.00043856,2]
[341070464,1730329846120,-182.90166614,0.00043856,18]
[341070465,1730329846130,-721.5602,0.00043859,2]
[341070466,1730329846140,-224.68177736,0.0004386,28]
[341070467,1730329846149,-2435.6757,0.00043861,2]
[341070468,1730329846158,-3640.2333,0.00043861,2]
[341070469,1730329846167,-1000.0,0.00043861,2]
[341070470,1730329846176,-3571.97669996,0.00043872,15]
[341070471,1730329846186,-2500.0,0.00043873,2]
[341070472,1730329846195,-452.41311774,0.00043876,2]
[341070473,1730329846204,-1500.0,0.00043893,7]
[341070474,1730329846216,-212.13409964,0.00043896,16]
[341070475,1730329846230,-397.0,0.000439,31]
[341070476,1730329846239,-150.0,0.000439,2]
[341070477,1730329846249,-150.0,0.000439,2]
[341070478,1730329846258,-150.0,0.00043926,2]
[341070479,1730329846267,-150.0,0.00043929,2]
[341070480,1730329846277,-150.0,0.00043937,2]
[341070481,1730329846286,-19685.6485369,0.0004395,2]
[341070482,1730329846295,-3085.5145866,0.0004395,2]
[341070483,1730329846305,-6291.2988316,0.0004395,2]
[341070484,1730329846314,-2006.16047213,0.00043955,5]
[341070485,1730329846324,-13487.46452024,0.00043956,30]
[341070486,1730329846333,-500.0,0.00043959,2]
[341070487,1730329846343,-215.40644866,0.0004396,30]
[341070488,1730329846352,-2750.90292473,0.0004396,2]
[341070489,1730329846362,-155.37538086,0.00043961,2]
[341070490,1730329846372,-1688.6855804,0.00043961,2]
[341070491,1730329846381,-170.0,0.00043961,7]
[341070492,1730329846390,-150.0,0.00043962,2]
[341070493,1730329846400,-452.41311774,0.00043966,2]
[341070494,1730329846409,-183.41,0.00043971,120]
[341070495,1730329846419,-66676.42898932,0.00043972,4]
[341070496,1730329846430,-400.86355871,0.00043972,120]
[341070497,1730329846439,-323.17440213,0.00043973,10]
[341070498,1730329846448,-500.0,0.00043973,2]
[341070499,1730329846458,-160658.76124121,0.00043973,4]
[341070500,1730329846469,-384.21404512,0.0004398,2]
[341070501,1730329846479,-150.0,0.00043981,2]
[341070502,1730329846488,-150.0,0.00043981,2]
[341070503,1730329846498,-1947.59281712,0.00043984,2]
[341070504,1730329846508,-200.59516231,0.00043984,2]
[341070505,1730329846517,-2911.02710482,0.00043986,2]
[341070506,1730329846527,-200.0,0.00043988,2]
[341070507,1730329846537,-452.41311774,0.00043989,2]
[341070508,1730329846546,-359.60926754,0.00043994,120]
[341070509,1730329846556,-556319.47320721,0.00043995,2]
[341070510,1730329846566,-20770.0902973,0.00043996,2]
[341070511,1730329846575,-39511.46664202,0.00043997,2]
[341070512,1730329846586,-1396.52,0.00043999,120]
[341070513,1730329846595,-87038.32339864,0.00044,2]
[341070514,1730329846604,-87746.63501973,0.00044,2]
[341070515,1730329846614,-500.0,0.00044,4]
[341070516,1730329846624,-11145.40949677,0.00044,30]
[341070517,1730329846633,-582.95,0.00044,60]
[341070518,1730329846642,-384.7,0.00044,30]
[341070519,1730329846652,-503.919162,0.00044,57]
[341070520,1730329846661,-3406.1157999,0.0004403,2]
[341070521,1730329846670,-6944.997909,0.0004403,2]
[341070522,1730329846679,-869.0201,0.00044037,2]
[341070523,1730329846689,-2000.0,0.00044037,2]
[341070524,1730329846698,-10104.05511028,0.0004406,17]
[341070525,1730329846708,-206787.14456019,0.0004406,16]
[341070526,1730329846718,-118805.6662973,0.00044061,2]
[341070527,1730329846727,-442.55619882,0.00044061,2]
[341070528,1730329846737,-1050.48248327,0.00044061,2]
[341070529,1730329846747,-2500.0,0.00044061,2]
[341070530,1730329846756,-2341.66052692,0.00044061,2]
[341070531,1730329846766,-570.32174056,0.00044061,2]
[341070532,1730329846775,-530.56017749,0.00044061,2]
[341070533,1730329846785,-260478.99800549,0.00044061,2]
[341070534,1730329846794,-898.14588023,0.00044061,2]
[341070535,1730329846803,-474.12933943,0.00044061,2]
[341070536,1730329846813,-320.71409446,0.00044061,2]
[341070537,1730329846822,-539.09480875,0.00044061,2]
[341070538,1730329846832,-358.9543912,0.00044061,2]
[341070539,1730329846841,-279.14910977,0.00044061,2]
[341070540,1730329846851,-1018.85091508,0.00044061,2]
[341070541,1730329846861,-216.80224184,0.00044061,2]
[341070542,1730329846870,-209.58662464,0.00044061,2]
[341070543,1730329846879,-1039.0,0.00044061,2]
[341070544,1730329846888,-1407.70640465,0.00044061,2]
[341070545,1730329846897,-115475.02837449,0.00044061,2]
[341070546,1730329846908,-105035.58909021,0.00044061,2]
[341070547,1730329846917,-837.90192191,0.00044061,2]
[341070548,1730329846926,-199.49388172,0.00044061,2]
[341070549,1730329846936,-263738.4564366,0.00044061,2]
[341070550,1730329846945,-145797.18260955,0.00044061,2]
[341070551,1730329846954,-111723.16601753,0.00044061,2]
[341070552,1730329846965,-155893.7883041,0.00044061,2]
[341070553,1730329846974,-58644.16860331,0.00044061,2]
[341070554,1730329846984,-10414.16080855,0.00044061,3]
[341070555,1730329846994,-1210.0,0.00044061,2]
[341070556,1730329847004,-3671.04103722,0.00044061,2]
[341070557,1730329847014,-342.53843687,0.00044061,2]
[341070558,1730329847023,-2956.51598786,0.00044061,2]
[341070559,1730329847033,-1495.58278008,0.00044061,2]
[341070560,1730329847042,-7257.22582982,0.00044061,2]
[341070561,1730329847052,-1012.5127267,0.00044061,2]
[341070562,1730329847062,-5099.11353438,0.00044061,2]
[341070563,1730329847072,-2687.9375617,0.00044061,2]
[341070564,1730329847081,-2414.38627557,0.00044061,2]
[341070565,1730329847091,-2634.11023299,0.00044061,2]
[341070566,1730329847100,-135184.31770984,0.00044061,2]
[341070567,1730329847109,-3193.99514078,0.00044061,2]
[341070568,1730329847119,-1459.01268398,0.00044061,2]
[341070569,1730329847129,-7594.01817286,0.00044061,2]
[341070570,1730329847139,-1051.19287113,0.00044061,2]
[341070571,1730329847148,-5873.7630879,0.00044061,2]
[341070572,1730329847158,-855.75088451,0.00044061,2]
[341070573,1730329847167,-187.79049477,0.00044061,2]
[341070574,1730329847177,-1290.11365079,0.00044061,2]
[341070575,1730329847187,-4862.31070679,0.00044061,2]
[341070576,1730329847196,-292.02451494,0.00044061,2]
[341070577,1730329847205,-12629.35303463,0.00044061,2]
[341070578,1730329847215,-1890.37300881,0.00044061,2]
[341070579,1730329847224,-181.09181935,0.00044061,2]
[341070580,1730329847234,-14595.00928263,0.00044061,3]
[341070581,1730329847244,-5494.89656001,0.00044061,2]
[341070582,1730329847254,-643.0,0.00044061,2]
[341070583,1730329847263,-954.83065782,0.00044061,2]
[341070584,1730329847273,-28900.51392606,0.00044061,2]
[341070585,1730329847282,-398.98261956,0.00044061,2]
[341070586,1730329847291,-298033.2040447,0.00044061,2]
[341070587,1730329847301,-145527.53134431,0.00044061,2]
[341070588,1730329847310,-198533.0322406,0.00044061,2]
[341070589,1730329847319,-1561.51917176,0.00044061,2]
[341070590,1730329847329,-2000.0,0.00044061,2]
[341070591,1730329847338,-10821.47494649,0.00044061,2]
[341070592,1730329847347,-4927.58085387,0.00044061,2]
[341070593,1730329847357,-22644.91584162,0.00044061,2]
[341070594,1730329847366,-22949.1011561,0.00044061,2]
[341070595,1730329847379,-2170.1816942,0.00044061,2]
[341070596,1730329847388,-670060.42764267,0.00044061,2]
[341070597,1730329847397,-518.49706311,0.00044061,7]
[341070598,1730329847406,-1090.91784905,0.00044061,7]
[341070599,1730329847415,-160726.20574027,0.00044061,7]
[341070600,1730329847425,-212.18522309,0.00044061,7]
[341070601,1730329847435,-210678.83281464,0.00044061,2]
[341070602,1730329847445,-576.38644707,0.00044061,2]
[341070603,1730329847454,-13840.06610451,0.00044061,2]
[341070604,1730329847464,-96067.75691682,0.00044061,10]
[341070605,1730329847473,-2186.28346212,0.00044061,10]
[341070606,1730329847483,-9088.33158661,0.00044061,2]
[341070607,1730329847493,-10127.64727691,0.00044061,10]
[341070608,1730329847503,-367.29954377,0.00044061,10]
[341070609,1730329847514,-902406.30715076,0.00044061,2]
[341070610,1730329847524,-4737.92507145,0.00044061,10]
[341070611,1730329847533,-302759.73410896,0.00044061,14]
[341070612,1730329847543,-5086.70738274,0.00044061,2]
[341070613,1730329847553,-3570.60221471,0.00044061,2]
[341070614,1730329847564,-1000.0,0.00044061,2]
[341070615,1730329847573,-1000.0,0.00044061,2]
[341070616,1730329847582,-1000.0,0.00044061,2]
[341070617,1730329847591,-1000.0,0.00044061,2]
[341070618,1730329847600,-1000.0,0.00044061,2]
[341070619,1730329847611,-651.0,0.00044061,2]
[341070620,1730329847621,-1054.53188078,0.00044061,2]
[341070621,1730329847632,-150.0,0.00044061,2]
[341070622,1730329847754,-1000.0,0.00044061,2]
[341070623,1730329847765,-1000.0,0.00044061,5]
[341070624,1730329847774,-1000.0,0.00044061,3]
[341070625,1730329847782,-1000.0,0.00044061,4]
[341070626,1730329847791,-3731.94323165,0.00044061,2]
[341070627,1730329847800,-209.66157196,0.00044061,15]
[341070628,1730329847810,-5223.06150349,0.00044061,4]
[341070629,1730329847819,-1257.19363923,0.00044061,4]
[341070630,1730329847828,-959.63525434,0.00044061,4]
[341070631,1730329847837,-6639.06174019,0.00044061,4]
[341070632,1730329847846,-5095.61182662,0.00044061,4]
[341070633,1730329847855,-214.25460161,0.00044061,5]
[341070634,1730329847865,-2473.78795731,0.00044061,15]
[341070635,1730329847875,-263.44268885,0.00044061,7]
[341070636,1730329847885,-265.559999,0.00044061,2]
[341070637,1730329847895,-1110.98508296,0.00044061,7]
[341070638,1730329847906,-40000.0,0.00044061,10]
[341070639,1730329847916,-208.20348834,0.00044061,5]
[341070640,1730329847925,-222.75822679,0.00044061,7]
[341070641,1730329847935,-808.869999,0.00044061,2]
[341070642,1730329847946,-19999.999999,0.00044061,2]
[341070643,1730329847956,-7984.39957158,0.00044061,2]
[341070644,1730329847966,-18531.85757892,0.00044061,5]
[341070645,1730329847975,-178.39564096,0.00044061,60]
[341070646,1730329847984,-50000.0,0.00044061,30]
[341070647,1730329847994,-50000.0,0.00044061,31]
[341070648,1730329848004,-50000.0,0.00044061,32]
[341070649,1730329848013,-50000.0,0.00044061,33]
[341070650,1730329848022,-50000.0,0.00044061,34]
[341070651,1730329848031,-1159.006838,0.00044061,120]
[341070652,1730329848044,-1000.0,0.00044061,120]
[341070653,1730329848054,-156.26187275,0.00044061,120]
[341070654,1730329848063,-663.31332246,0.00044061,120]
[341070655,1730329848073,-48686.20896767,0.00044061,16]
[341070656,1730329848083,-168.38632179,0.00044061,120]
[341070657,1730329848092,-150.37093257,0.00044061,120]
[341070658,1730329848102,-2139.42431831,0.00044061,2]
[341070659,1730329848111,-157.99834795,0.00044061,30]
[341070660,1730329848121,-3008.64730326,0.00044061,120]
[341070661,1730329848131,-2003.39560548,0.00044061,30]
[341070662,1730329848140,-418.12603709,0.00044061,120]
[341070663,1730329848149,-300.32884568,0.00044061,120]
[341070664,1730329848159,-1286.15866905,0.00044061,30]
[341070665,1730329848168,-216.0,0.00044061,120]
[341070666,1730329848177,-520.66164261,0.00044061,30]
[341070667,1730329848186,-500.0,0.00044061,2]
[341070668,1730329848195,-631.38623922,0.00044061,2]
[341070669,1730329848204,-500.0,0.00044061,5]
[341070670,1730329848215,-500.0,0.00044061,5]
[341070671,1730329848225,-500.0,0.00044061,5]
[341070672,1730329848234,-500.0,0.00044061,5]
[341070673,1730329848243,-500.0,0.00044061,5]
[341070674,1730329848253,-500.0,0.00044061,2]
[341070675,1730329848262,-153.74664292,0.00044061,2]
[341070676,1730329848271,-500.0,0.00044061,2]
[341070677,1730329848281,-500.0,0.00044061,2]
[341070678,1730329848290,-500.0,0.00044061,2]
[341070679,1730329848300,-500.0,0.00044061,2]
[341070680,1730329848309,-500.0,0.00044061,2]
[341070681,1730329848319,-500.0,0.00044061,2]
[341070682,1730329848328,-609.1838546,0.00044061,2]
[341070683,1730329848337,-395.0,0.00044061,30]
[341070684,1730329848347,-576.87535384,0.00044061,30]
[341070685,1730329848356,-525.44864893,0.00044061,30]
[341070686,1730329848365,-509.02837742,0.00044061,30]
[341070687,1730329848375,-500.0,0.00044061,30]
[341070688,1730329848384,-500.0,0.00044061,30]
[341070689,1730329848393,-500.0,0.00044061,30]
[341070690,1730329848403,-500.0,0.00044061,30]
[341070691,1730329848412,-500.0,0.00044061,30]
[341070692,1730329848421,-500.0,0.00044061,30]
[341070693,1730329848431,-500.0,0.00044061,30]
[341070694,1730329848440,-500.0,0.00044061,30]
[341070695,1730329848449,-500.0,0.00044061,30]
[341070696,1730329848459,-500.0,0.00044061,30]
[341070697,1730329848468,-535.86760959,0.00044061,60]
[341070698,1730329848478,-169.9989494,0.00044061,30]
[341070699,1730329848487,-570.83879335,0.00044061,30]
[341070700,1730329848496,-514.09571962,0.00044061,30]
[341070701,1730329848506,-580.11735369,0.00044061,30]
[341070702,1730329848516,-500.0,0.00044061,30]
[341070703,1730329848525,-600.00095584,0.00044061,30]
[341070704,1730329848534,-517.90063727,0.00044061,30]
[341070705,1730329848544,-575.88985915,0.00044061,30]
[341070706,1730329848552,-500.0,0.00044061,30]
[341070707,1730329848562,-266.5404392,0.00044061,30]
[341070708,1730329848571,-505.0391378,0.00044061,30]
[341070709,1730329848580,-500.0,0.00044061,30]
[341070710,1730329848590,-500.0,0.00044061,30]
[341070711,1730329848599,-500.0,0.00044061,30]
[341070712,1730329848608,-531.94493111,0.00044061,30]
[341070713,1730329848618,-156.43373272,0.00044061,30]
[341070714,1730329848627,-500.0,0.00044061,30]
[341070715,1730329848636,-500.0,0.00044061,30]
[341070716,1730329848645,-524.08225164,0.00044061,30]
[341070717,1730329848655,-500.0,0.00044061,30]
[341070718,1730329848664,-524.99184084,0.00044061,30]
[341070719,1730329848673,-500.0,0.00044061,30]
[341070720,1730329848683,-584.43828804,0.00044061,30]